Workbook

Sheet 서식4-1_인건비(정규직교원)
A1: [서식 4-1]
A2: ■ 인건비 소요액 | T2: 구분 | U2: 직 | V2: 성명 | W2: 날인/서명
A3: 가. 교직원 인건비 | T3: 검토자 | U3: 행정실장 | W3: (인)
A4: 1) 교원(개인별) | G4: (금액단위 : 원) | T4: 작성자 | U4: 담당자 | W4: (인)
A6: 연번 | B6: 현직급 (직위) | C6: 성명 | D6: 현직급 임용일 | E6: 근속 년수 | F6: 현 호봉 | G6: 봉급 | H6: 정근수당 | I6: 정근수당가산 | J6: 성과상여금 | K6: 대우공무원 | L6: 가족수당 | M6: 자녀학비보조 | N6: 육아휴직 | O6: 특수지근무 | P6: 보전수당 | Q6: 교직수당 | R6: 원로교사 | S6: 전문상담교사 및 전문상담순회교사 | T6: 연보수액계 | U6: 직급보조비 | V6: 총 계 | W6: 교원분류 (특수학교만 입력)
D7: 퇴직일 | E7: 승급월 | G7: 보직교사 | H7: 특별수당 | I7: 담임교사 | J7: 실과교원 | K7: 보건활동수당 | L7: 겸직수당 | M7: 시간외근무수당 | N7: 관리업무수당 | O7: 정액급식비 | P7: 명절휴가비 | Q7: 연가보상비 | R7: 기술정보수당
A8: 소 계 | G8: 1,781,355,100 | H8: 148,220,630 | I8: 43,520,000 | J8: 112,026,610 | K8: 0 | L8: 24,480,000 | M8: 8,290,950 | N8: 0 | P8: 960,000 | Q8: 93,500,000 | R8: 1,050,000 | S8: 240,000 | T8: 2,539,691,180 | U8: 7,800,000 | V8: 2,547,491,180
G9: 8,400,000 | I9: 10,400,000 | K9: 0 | N9: 71,055,780 | O9: 6,092,870 | P9: 48,620,000 | Q9: 181,479,240 | R9: 0

Sheet 서식4-2_인건비(기간제교원)
A1: [서식 4-2]
A2: ■ 인건비 소요액 | T2: 구분 | U2: 직 | V2: 성명 | W2: 날인/서명
A3: 가. 교직원 인건비 | T3: 검토자 | U3: 행정실장 | W3: (인)
A4: 1) 교원(개인별) | G4: (금액단위 : 원) | T4: 작성자 | U4: 담당자 | W4: (인)
A6: 연번 | B6: 현직급 (직위) | C6: 성명 | D6: 현직급 임용일 | E6: 근속 년수 | F6: 현 호봉 | G6: 봉급 | H6: 정근수당 | I6: 정근수당가산 | J6: 성과상여금 | K6: 대우공무원 | L6: 가족수당 | M6: 자녀학비보조 | N6: 육아휴직 | O6: 특수지근무 | P6: 보전수당 | Q6: 교직수당 | R6: 원로교사 | S6: 퇴직금 | T6: 연보수액계 | U6: 직급보조비 | V6: 총 계 | W6: 교원분류 (특수학교만 입력)
D7: 퇴직일 | E7: 승급월 | G7: 보직교사 | H7: 특별수당 | I7: 담임교사 | J7: 실과교원 | K7: 보건활동수당 | L7: 겸직수당 | M7: 시간외근무수당 | N7: 관리업무수당 | O7: 정액급식비 | P7: 명절휴가비 | Q7: 연가보상비 | R7: 기술정보수당 | S7: 전문상담교사 및 전문상담순회교사
A8: 1 | B8: 기간제교 | C8: 이현정 | D8: 2017-03-01 | E8: 13 | F8: 22 | G8: 38,142,600 | H8: 3,191,250 | I8: 720,000 | J8: 2,371,150 | K8: 0 | L8: 0 | M8: 0 | N8: 0 | P8: 0 | Q8: 3,000,000 | R8: 0 | S8: 4,870,860 | T8: =SUM(G8:S9) -> 59,792,320 | V8: =T8+U8 -> 59,792,320
E9: 3 | G9: 0 | I9: 0 | K9: 360,000 | N9: 1,746,960 | O9: 0 | P9: 1,560,000 | Q9: 3,829,500 | R9: 0
A10: 2 | B10: 기간제교 | C10: 채지현 | D10: 2019-02-28 | E10: 11 | F10: 20 | G10: 0 | H10: 0 | I10: 0 | J10: 2,371,150 | K10: 0 | L10: 0 | M10: 0 | N10: 0 | P10: 0 | Q10: 0 | R10: 0 | S10: 0 | T10: =SUM(G10:S11) -> 2,371,150 | V10: =T10+U10 -> 2,371,150
E11: 0 | G11: 0 | I11: 0 | K11: 0 | N11: 0 | O11: 0 | P11: 0 | Q11: 0 | R11: 0
A12: 3 | B12: 기간제교 | C12: 박정렬 | D12: 2013-03-01 | E12: 10 | F12: 19 | G12: 34,340,600 | H12: 2,873,150 | I12: 720,000 | J12: 2,838,380 | K12: 0 | L12: 480,000 | M12: 0 | N12: 0 | P12: 0 | Q12: 3,000,000 | R12: 0 | S12: 5,814,380 | T12: =SUM(G12:S13) -> 56,842,740 | V12: =T12+U12 -> 56,842,740
E13: 3 | G13: 0 | I13: 0 | K13: 0 | N13: 1,768,450 | O13: 0 | P13: 1,560,000 | Q13: 3,447,780 | R13: 0
A14: 4 | B14: 기간제교 | C14: 강현선 | D14: 2016-03-01 | E14: 9 | F14: 18 | G14: 33,116,600 | H14: 2,493,670 | I14: 600,000 | J14: 2,838,380 | K14: 0 | L14: 0 | M14: 0 | N14: 0 | P14: 0 | Q14: 3,000,000 | R14: 0 | S14: 4,938,990 | T14: =SUM(G14:S15) -> 54,138,790 | V14: =T14+U14 -> 54,138,790
E15: 3 | G15: 0 | I15: 650,000 | K15: 0 | N15: 1,616,250 | O15: 0 | P15: 1,560,000 | Q15: 3,324,900 | R15: 0
A16: 5 | B16: 기간제교 | C16: 황차동 | D16: 2019-02-28 | E16: 9 | F16: 18 | G16: 0 | H16: 0 | I16: 0 | J16: 2,838,380 | K16: 0 | L16: 0 | M16: 0 | N16: 0 | P16: 0 | Q16: 0 | R16: 0 | S16: 0 | T16: =SUM(G16:S17) -> 3,012,330 | V16: =T16+U16 -> 3,012,330
E17: 0 | G17: 0 | I17: 0 | K17: 0 | N17: 173,950 | O17: 0 | P17: 0 | Q17: 0 | R17: 0
A18: 6 | B18: 기간제교 | C18: 김지훈 | D18: 2019-03-01 | E18: 8 | F18: 17 | G18: 31,886,600 | H18: 1,780,690 | I18: 600,000 | J18: 0 | K18: 0 | L18: 480,000 | M18: 0 | N18: 0 | P18: 0 | Q18: 3,000,000 | R18: 0 | S18: 2,736,240 | T18: =SUM(G18:S19) -> 47,460,480 | V18: =T18+U18 -> 47,460,480
E19: 0 | G19: 0 | I19: 650,000 | K19: 0 | N19: 1,565,530 | O19: 0 | P19: 1,560,000 | Q19: 3,201,420 | R19: 0
A20: 7 | B20: 기간제교 | C20: 차유경 | D20: 2019-07-01 | E20: 7 | F20: 15 | G20: 19,701,400 | H20: 869,680 | I20: 400,000 | J20: 0 | K20: 0 | L20: 0 | M20: 0 | N20: 0 | P20: 0 | Q20: 2,000,000 | R20: 0 | S20: 0 | T20: =SUM(G20:S21) -> 28,105,790 | V20: =T20+U20 -> 28,105,790
E21: 0 | G21: 0 | I21: 0 | K21: 0 | N21: 1,130,650 | O21: 0 | P21: 1,040,000 | Q21: 2,964,060 | R21: 0
A22: 8 | B22: 기간제교 | C22: 양은엽 | D22: 2018-08-31 | E22: 7 | F22: 15 | G22: 0 | H22: 0 | I22: 0 | J22: 1,010,340 | K22: 0 | L22: 0 | M22: 0 | N22: 0 | P22: 0 | Q22: 0 | R22: 0 | S22: 0 | T22: =SUM(G22:S23) -> 1,010,340 | V22: =T22+U22 -> 1,010,340
E23: 0 | G23: 0 | I23: 0 | K23: 0 | N23: 0 | O23: 0 | P23: 0 | Q23: 0 | R23: 0
A24: 9 | B24: 기간제교 | C24: 이혜경 | D24: 2019-02-28 | E24: 6 | F24: 15 | G24: 0 | H24: 0 | I24: 0 | J24: 2,371,150 | K24: 0 | L24: 0 | M24: 0 | N24: 0 | P24: 0 | Q24: 0 | R24: 0 | S24: 0 | T24: =SUM(G24:S25) -> 2,371,150 | V24: =T24+U24 -> 2,371,150
E25: 0 | G25: 0 | I25: 0 | K25: 0 | N25: 0 | O25: 0 | P25: 0 | Q25: 0 | R25: 0
A26: 10 | B26: 기간제교 | C26: 김보들 | D26: 2019-02-28 | E26: 3 | F26: 12 | G26: 0 | H26: 0 | I26: 0 | J26: 2,371,150 | K26: 0 | L26: 0 | M26: 0 | N26: 0 | P26: 0 | Q26: 0 | R26: 0 | S26: 0 | T26: =SUM(G26:S27) -> 2,371,150 | V26: =T26+U26 -> 2,371,150
E27: 12 | G27: 0 | I27: 0 | K27: 0 | N27: 0 | O27: 0 | P27: 0 | Q27: 0 | R27: 0
A28: 11 | B28: 기간제교 | C28: 박종화 | D28: 2018-09-01 | E28: 3 | F28: 12 | G28: 25,967,200 | H28: 651,780 | I28: 0 | J28: 1,010,340 | K28: 0 | L28: 0 | M28: 0 | N28: 0 | P28: 0 | Q28: 3,000,000 | R28: 0 | S28: 3,136,240 | T28: =SUM(G28:S29) -> 40,492,460 | V28: =T28+U28 -> 40,492,460
E29: 0 | G29: 0 | I29: 650,000 | K29: 0 | N29: 1,909,780 | O29: 0 | P29: 1,560,000 | Q29: 2,607,120 | R29: 0
A30: 12 | B30: 기간제교 | C30: 전종민 | D30: 2020-01-01 | E30: 2 | F30: 11 | G30: 21,054,000 | H30: 210,540 | I30: 0 | J30: 668,120 | K30: 0 | L30: 0 | M30: 0 | N30: 0 | P30: 0 | Q30: 2,500,000 | R30: 0 | S30: 2,836,240 | T30: =SUM(G30:S31) -> 31,143,990 | V30: =T30+U30 -> 31,143,990
E31: 0 | G31: 0 | I31: 0 | K31: 0 | N31: 1,311,850 | O31: 0 | P31: 1,300,000 | Q31: 1,263,240 | R31: 0
A32: 13 | B32: 기간제교 | C32: 이은지 | D32: 2019-03-01 | E32: 0 | F32: 9 | G32: 24,028,800 | H32: 0 | I32: 0 | J32: 0 | K32: 0 | L32: 0 | M32: 0 | N32: 0 | P32: 0 | Q32: 3,000,000 | R32: 0 | S32: 3,036,240 | T32: =SUM(G32:S33) -> 36,437,870 | V32: =T32+U32 -> 36,437,870
E33: 0 | G33: 0 | I33: 650,000 | K33: 0 | N33: 1,750,350 | O33: 0 | P33: 1,560,000 | Q33: 2,412,480 | R33: 0
A34: 14 | B34: 기간제교 | C34: 이다인 | D34: 2019-08-20 | E34: 0 | F34: 9 | G34: 11,990,400 | H34: 0 | I34: 0 | J34: 0 | K34: 0 | L34: 0 | M34: 0 | N34: 0 | P34: 0 | Q34: 1,500,000 | R34: 0 | S34: 0 | T34: =SUM(G34:S35) -> 14,835,740 | V34: =T34+U34 -> 14,835,740
E35: 0 | G35: 0 | I35: 0 | K35: 0 | N35: 565,340 | O35: 0 | P35: 780,000 | Q35: 0 | R35: 0
A36: 소 계 | G36: 240,228,200 | H36: 12,070,760 | I36: 3,040,000 | J36: 20,688,540 | K36: 0 | L36: 960,000 | M36: 0 | N36: 0 | P36: 0 | Q36: 24,000,000 | R36: 0 | S36: 27,369,190 | T36: 380,386,300 | V36: 380,386,300
G37: 0 | I37: 2,600,000 | K37: 360,000 | N37: 13,539,110 | O37: 0 | P37: 12,480,000 | Q37: 23,050,500 | R37: 0

Sheet 서식4-3_인건비(사무직원)
A1: [서식 4-3]
A2: ■ 인건비 소요액 | R2: 구분 | S2: 직 | T2: 성명 | U2: 날인/서명
A3: 가. 사무직원 인건비 | R3: 검토자 | S3: 행정실장 | U3: (인)
A4: 1) 사무직원(개인별) | G4: (금액단위 : 원) | R4: 작성자 | S4: 담당자 | U4: (인)
A6: 연번 | B6: 현직급 (직위) | C6: 성명 | D6: 현직급 임용일 | E6: 근속 년수 | F6: 현 호봉 | G6: 본봉 | H6: 정근수당 | I6: 장기근속수당 | J6: 성과상여금 | K6: 대우수당 | L6: 가족수당 | M6: 학비보조수당 | N6: 육아휴직수당 | R6: 특수직무수당 | S6: 연보수액계 | T6: 직급보조비 | U6: 총 계
D7: 퇴직일 | E7: 승급월 | I7: 학급담임수당 | K7: 보건활동수당 | M7: 시간외수당 | O7: 정액급식비 | P7: 명절휴가비 | Q7: 연가보상비
A8: 소 계 | G8: 108,986,100 | H8: 6,673,270 | I8: 1,920,000 | J8: 12,155,750 | K8: 0 | L8: 2,640,000 | M8: 0 | N8: 0 | R8: 1,440,000 | S8: 166,331,690 | T8: 7,200,000 | U8: 173,531,690
I9: 0 | K9: 0 | M9: 13,416,260 | O9: 6,240,000 | P9: 11,079,780 | Q9: 1,780,530
